bitfinex/quotes_SOLUSD_20260228
["timestamp","ask_amount","ask_price","bid_price","bid_amount"]
[1772267177890,17.33042803,78.52,78.481,0.5]
[1772267178596,17.33042803,78.52,78.491,0.5]
[1772267179001,17.33042803,78.53,78.491,0.5]
[1772267179189,17.33042803,78.52,78.491,0.5]
[1772267179589,17.33042803,78.53,78.493,0.5]
[1772267180217,12.73252778,78.539,78.511,0.5]
[1772267181114,17.33042803,78.53,78.493,0.5]
[1772267181594,17.33042803,78.53,78.495,0.5]
[1772267182510,12.73414916,78.529,78.495,0.5]
[1772267183696,12.73414916,78.529,78.496,12.73950264]
[1772267183904,12.73414916,78.529,78.497,0.5]
[1772267184104,12.73414916,78.529,78.501,0.5]
[1772267184613,17.33042803,78.53,78.501,0.5]
[1772267184920,12.73288065,78.537,78.501,0.5]
[1772267185714,17.33042803,78.53,78.501,0.5]
[1772267186121,12.73414916,78.529,78.501,0.5]
[1772267187116,17.33042803,78.53,78.503,0.5]
[1772267187306,12.73278721,78.538,78.503,0.5]
[1772267188117,12.73278721,78.538,78.505,0.5]
[1772267188512,17.33042803,78.53,78.505,0.5]
[1772267190229,17.33042803,78.53,78.506,13.2378799]
[1772267190609,12.73414916,78.529,78.506,13.2378799]
[1772267191029,17.33042803,78.53,78.507,0.5]
[1772267192162,17.33042803,78.53,78.508,12.7375554]
[1772267192433,12.7326899,78.538,78.509,0.5]
[1772267193238,12.72977239,78.556,78.511,0.5]
[1772267193464,17.33042803,78.55,78.511,0.5]
[1772267194132,17.33042803,78.54,78.512,0.5]
[1772267195231,17.33042803,78.54,78.505,0.5]
[1772267195432,17.33042803,78.53,78.505,0.5]
[1772267195625,17.33042803,78.53,78.506,12.7378799]
[1772267195819,17.33042803,78.53,78.506,13.2378799]
[1772267196329,12.73336028,78.534,78.506,13.2378799]
[1772267197839,31.82726705,78.549,78.506,13.2378799]
[1772267197840,14.4761478,78.53,78.506,13.2378799]
[1772267198040,14.4761478,78.53,78.49,14.4761478]
[1772267198245,14.4761478,78.53,78.491,0.5]
[1772267198728,14.4761478,78.53,78.492,12.74002236]
[1772267198931,14.4761478,78.53,78.493,0.5]
[1772267199829,1.27297723,78.548,78.492,12.74002236]
[1772267199830,14.4761478,78.54,78.501,0.5]
[1772267200033,12.73252778,78.539,78.503,0.5]
[1772267201725,14.4761478,78.53,78.503,0.5]
[1772267202148,12.73414916,78.529,78.504,13.23820442]
[1772267203830,12.73414916,78.529,78.505,0.5]
[1772267204251,12.7326899,78.538,78.505,0.5]
[1772267205730,14.4761478,78.53,78.505,0.5]
[1772267205948,12.73414916,78.529,78.505,0.5]
[1772267206147,14.4761478,78.53,78.506,13.2378799]
[1772267206349,27.21025682,78.53,78.506,13.2378799]
[1772267206539,27.21025682,78.53,78.506,0.5]
[1772267207441,27.21025682,78.53,78.506,13.2378799]
[1772267208349,27.21025682,78.53,78.507,0.5]
[1772267208551,12.73410902,78.53,78.507,0.5]
[1772267209855,44.56384725,78.539,78.507,0.5]
[1772267210860,44.56384725,78.539,78.509,0.5]
[1772267211957,44.56384725,78.539,78.511,0.5]
[1772267215147,14.4761478,78.53,78.502,0.5]
[1772267216644,12.73414916,78.529,78.502,0.5]
[1772267218862,12.73414916,78.529,78.497,12.73928078]
[1772267219060,12.73414916,78.529,78.471,63.71720933]
[1772267219061,14.4761478,78.51,78.484,0.5]
[1772267219258,12.73414916,78.529,78.491,0.5]
[1772267219962,14.4761478,78.52,78.491,0.5]
[1772267220850,12.73301415,78.536,78.501,0.5]
[1772267221050,12.73301415,78.536,78.511,0.5]
[1772267221253,6.4864523,78.53,78.502,0.5]
[1772267221762,6.4864523,78.53,78.491,12.74018323]
[1772267221955,6.4864523,78.5,78.467,0.5]
[1772267222870,12.73901578,78.499,78.469,0.5]
[1772267223369,12.73832789,78.504,78.471,0.5]
[1772267224242,6.4864523,78.5,78.472,12.74339891]
[1772267224442,6.4864523,78.5,78.473,0.5]
[1772267224652,12.73755108,78.509,78.473,0.5]
[1772267224863,6.4864523,78.5,78.473,0.5]
[1772267225378,12.73755108,78.509,78.473,0.5]
[1772267225852,12.73755108,78.509,78.481,0.5]
[1772267226049,6.4864523,78.52,78.481,0.5]
[1772267226454,6.4864523,78.53,78.491,0.5]
[1772267226653,12.73414916,78.529,78.491,0.5]
[1772267227670,12.73414916,78.529,78.493,0.5]
[1772267228050,6.4864523,78.52,78.493,0.5]
[1772267231963,6.4864523,78.52,78.495,0.5]
[1772267232164,12.73487471,78.525,78.495,0.5]
[1772267233778,6.4864523,78.51,78.461,0.5]
[1772267234071,6.4864523,78.49,78.463,0.5]
[1772267235978,6.4864523,78.49,78.465,0.5]
[1772267237369,1.27297723,78.507,78.467,0.5]
[1772267237567,6.4864523,78.51,78.471,0.5]
[1772267238076,12.73739316,78.509,78.473,0.5]
[1772267238379,12.73739316,78.509,78.481,0.5]
[1772267238790,12.73681775,78.513,78.481,0.5]
[1772267239003,6.4864523,78.51,78.481,0.5]
[1772267239965,6.4864523,78.51,78.483,0.5]
[1772267240276,19.22383158,78.51,78.483,0.5]
[1772267240483,6.4864523,78.5,78.473,0.5]
[1772267241587,19.22383158,78.51,78.473,0.5]
[1772267242288,19.22383158,78.51,78.475,0.5]
[1772267242289,6.4864523,78.5,78.475,0.5]
[1772267242787,51.06690889,78.51,78.475,0.5]
[1772267244082,6.4864523,78.48,78.448,63.7363365]
[1772267244388,44.58045659,78.51,66.093,10.60705424]
[1772267244389,6.4864523,78.47,78.439,0.5]
[1772267245392,6.4864523,78.47,78.4,6.6864523]
[1772267245393,6.4864523,78.48,78.441,0.5]
[1772267245803,6.4864523,78.48,78.443,0.5]
[1772267245804,12.74226226,78.479,78.443,0.5]
[1772267248384,12.74226226,78.479,78.445,0.5]
[1772267248586,12.74226226,78.479,78.444,12.74794758]
[1772267248587,1.27297723,78.502,78.471,0.5]
[1772267248787,6.4864523,78.5,78.471,0.5]
[1772267249093,6.4864523,78.5,78.444,44.61781653]
[1772267249094,6.4864523,78.49,78.451,0.5]
[1772267249283,14.49275752,78.49,78.451,0.5]
[1772267250075,14.49275752,78.49,78.45,14.49275752]
[1772267250076,12.74063881,78.489,78.453,0.5]
[1772267253509,12.74063881,78.489,78.455,0.5]
[1772267253807,12.73980414,78.495,78.461,0.5]
[1772267254301,14.49275752,78.48,78.461,0.5]
[1772267254601,14.49275752,78.49,78.461,0.5]
[1772267256005,14.49275752,78.47,78.445,0.5]
[1772267256186,14.49275752,78.46,78.445,0.5]
[1772267256585,14.49275752,78.47,78.445,0.5]
[1772267257101,14.49275752,78.46,78.445,0.5]
[1772267258610,14.49275752,78.47,78.447,0.5]
[1772267259406,44.59053151,78.492,78.447,0.5]
[1772267259606,14.50096261,78.49,78.451,0.5]
[1772267259993,14.50096261,78.49,78.452,44.6132667]
[1772267260301,14.50096261,78.49,78.453,0.5]
[1772267260501,14.50096261,78.49,78.461,0.5]
[1772267261808,14.50096261,78.49,78.452,44.6132667]
[1772267261809,14.50096261,78.49,78.463,0.5]
[1772267262016,12.74063881,78.489,78.463,0.5]
[1772267264594,12.74063881,78.489,78.465,0.5]
[1772267269006,12.74063881,78.489,78.452,31.86661907]
[1772267269007,27.23981611,78.5,78.467,0.5]
[1772267269203,14.50096261,78.5,78.467,0.5]
[1772267271233,14.50096261,78.5,78.469,0.5]
[1772267271234,6.49123485,78.5,78.469,0.5]
[1772267273714,12.73901578,78.499,78.471,0.5]
[1772267274225,12.73901578,78.499,78.441,63.74155443]
[1772267274226,6.49123485,78.49,78.458,0.5]
[1772267275913,12.74063881,78.489,78.459,12.74551039]
[1772267276113,12.74063881,78.489,78.46,0.5]
[1772267278220,6.49123485,78.49,78.462,0.5]
[1772267278716,19.23178648,78.49,78.462,0.5]
[1772267279849,19.23178648,78.49,78.464,0.5]
[1772267280146,6.49123485,78.49,78.464,0.5]
[1772267280351,19.23172005,78.49,78.464,0.5]
[1772267280939,19.23172005,78.49,78.444,0.5]
[1772267280940,6.49123485,78.48,78.444,0.5]
[1772267281249,6.49123485,78.48,78.445,0.5]
[1772267281942,6.49123485,78.48,78.447,0.5]
[1772267282141,6.49123485,78.49,78.451,0.5]
[1772267282337,6.49123485,78.49,78.446,12.74762256]
[1772267282338,6.49123485,78.51,78.471,0.5]
[1772267282539,6.49123485,78.53,78.491,0.5]
[1772267282743,12.73274287,78.538,78.501,0.5]
[1772267283442,6.49123485,78.53,78.501,0.5]
[1772267283831,6.49123485,78.53,78.446,44.61667898]
[1772267283832,6.49123485,78.54,78.511,0.5]
[1772267284158,12.73143642,78.546,78.511,0.5]
[1772267284527,6.49123485,78.55,78.511,0.5]
[1772267285453,31.82369055,78.558,78.511,0.5]
[1772267285632,6.49123485,78.55,78.511,0.5]
[1772267285832,6.49123485,78.55,78.513,0.5]
[1772267286035,57.5,78.57,78.507,0.5]
[1772267286036,6.49123485,78.53,78.507,0.5]
[1772267286243,6.49123485,78.54,78.507,0.5]
[1772267286424,6.49123485,78.55,78.511,0.5]
[1772267287850,6.49123485,78.55,78.513,0.5]
[1772267288557,6.49123485,78.55,78.48,6.49123485]
[1772267288558,12.9824697,78.52,78.481,0.5]
[1772267288740,6.49123485,78.5,78.481,0.5]
[1772267289152,6.49123485,78.52,78.462,12.74502306]
[1772267289153,6.49123485,78.49,78.462,12.74502306]
[1772267289635,0.49036047,78.509,78.47,6.49123485]
[1772267289837,12.7375554,78.508,78.471,12.74356131]
[1772267290030,1.27297723,78.534,78.471,12.74356131]
[1772267290031,6.49123485,78.52,78.48,6.49123485]
[1772267290250,6.98159532,78.52,78.48,6.49123485]
[1772267291133,6.49123485,78.51,78.481,0.4646061]
[1772267291334,14.48419594,78.51,78.481,0.4646061]
[1772267291549,14.48419594,78.52,78.481,0.4646061]
[1772267291760,0.48140052,78.519,78.481,0.4646061]
[1772267291941,14.48419594,78.5,78.482,12.74177518]
[1772267292134,0.48140052,78.509,78.482,12.74177518]
[1772267292757,0.48140052,78.499,78.461,13.2097916]
[1772267293051,0.48140052,78.499,78.462,0.4646061]
[1772267293955,0.48140052,78.499,78.46,14.48419594]
[1772267293956,0.48140052,78.497,78.464,0.4646061]
[1772267294132,0.48140052,78.489,78.464,0.4646061]
[1772267294738,0.48140052,78.479,78.454,12.74628569]
[1772267295385,0.48140052,78.479,78.449,12.74711539]
[1772267295873,14.48419594,78.48,78.418,63.76049153]
[1772267295874,0.48140052,78.489,78.451,0.4646061]
[1772267298064,0.48140052,78.489,78.452,44.6132667]
[1772267298264,0.48140052,78.489,78.453,0.4646061]
[1772267298477,0.48140052,78.501,78.461,0.4646061]
[1772267298687,0.48140052,78.499,78.461,0.4646061]
[1772267298888,14.48419594,78.49,78.461,0.4646061]
[1772267299298,0.48140052,78.499,78.461,0.4646061]
[1772267299602,13.22057858,78.498,78.463,0.4646061]
[1772267300395,0.48140052,78.497,78.463,0.4646061]
[1772267302096,0.48140052,78.497,78.465,0.4646061]
[1772267302397,14.48419594,78.49,78.465,0.4646061]
[1772267303398,0.48140052,78.489,78.465,0.4646061]
[1772267303584,12.74063881,78.489,78.465,0.4646061]
[1772267305306,0.48140052,78.493,78.465,0.4646061]
[1772267306308,14.96559646,78.49,78.465,0.4646061]
[1772267308591,14.96559646,78.49,78.467,0.4646061]
[1772267309611,0.48140052,78.49,78.467,0.4646061]
[1772267311011,0.48140052,78.49,78.468,12.74404852]
[1772267311309,0.48140052,78.49,78.469,0.4646061]
[1772267312895,0.48140052,78.488,78.461,12.7451855]
[1772267313091,0.48140052,78.479,78.452,12.74659713]
[1772267313493,0.48140052,78.479,78.452,13.21120323]
[1772267313692,0.48140052,78.479,78.453,0.4646061]
[1772267314910,0.48140052,78.479,78.454,13.21092878]
[1772267315908,0.48140052,78.479,78.454,12.74632268]
[1772267316111,0.48140052,78.478,78.454,12.74632268]
[1772267316296,0.48140052,78.478,78.454,13.21092878]
[1772267316492,6.66085164,78.503,78.46,6.49196901]
[1772267316697,0.48140052,78.509,78.471,0.4646061]
[1772267317105,0.48140052,78.508,78.473,0.4646061]
[1772267317913,0.48140052,78.508,78.481,0.4646061]
[1772267319120,0.48140052,78.508,78.483,0.4646061]
[1772267320103,0.48140052,78.508,78.485,0.4646061]
[1772267320730,12.73771765,78.507,78.485,0.4646061]
[1772267321816,13.22842244,78.507,78.485,0.4646061]
[1772267322010,6.95280564,78.49,78.471,0.46471075]
[1772267322228,0.46405231,78.489,78.464,0.47423328]
[1772267322525,0.46405231,78.497,78.466,0.47423328]
[1772267322830,6.48875333,78.49,78.466,0.47423328]
[1772267324842,0.46405231,78.497,78.468,0.47423328]
[1772267325118,0.46405231,78.479,78.452,13.22088091]
[1772267325311,0.46405231,78.479,78.453,0.47423328]
[1772267326310,0.46405231,78.479,78.454,12.74632268]
[1772267327225,0.46405231,78.479,78.454,13.22055596]
[1772267327924,0.46405231,78.479,78.455,0.47423328]
[1772267328125,0.46405231,78.459,78.425,0.47423328]
[1772267328332,6.48875333,78.45,78.426,0.47423328]
[1772267329037,6.48875333,78.45,78.42,0.2]
[1772267329038,6.48875333,78.44,78.42,0.2]
[1772267329331,6.48875333,78.45,78.422,0.47423328]
[1772267330531,6.48875333,78.45,78.424,0.47423328]
[1772267331516,6.48875333,78.46,78.424,0.47423328]
[1772267331922,6.95280564,78.46,78.424,0.47423328]
[1772267332130,6.48875333,78.45,78.424,0.47423328]
[1772267332629,6.48875333,78.45,78.426,0.47423328]
[1772267334437,0.46405231,78.459,78.426,0.47423328]
[1772267334624,6.48875333,78.45,78.426,0.47423328]
[1772267334824,6.48875333,78.45,78.425,44.62862607]
[1772267334825,6.48875333,78.45,78.428,0.47423328]
[1772267335534,0.46405231,78.458,78.428,0.47423328]
[1772267336525,0.46405231,78.458,78.429,12.75038569]
[1772267336734,0.46405231,78.458,78.43,0.47423328]
[1772267338833,0.46405231,78.458,78.432,0.47423328]
[1772267339228,6.48875333,78.45,78.432,0.47423328]
[1772267341640,0.46405231,78.458,78.434,0.47423328]
[1772267342532,0.46405231,78.458,78.42,6.68875333]
[1772267342533,6.48875333,78.47,78.436,0.47423328]
[1772267342943,0.46405231,78.474,78.441,0.47423328]
[1772267343330,6.48875333,78.47,78.441,0.47423328]
[1772267344538,6.48875333,78.47,78.42,0.2]
[1772267344539,0.46405231,78.449,78.42,0.2]
[1772267344868,6.48875333,78.43,78.42,0.2]
[1772267345018,0.46405231,78.435,78.413,0.39353483]
[1772267345634,0.46405231,78.435,78.415,12.75259792]
[1772267346922,0.46405231,78.429,78.401,0.47423328]
[1772267347737,0.46405231,78.429,78.404,13.22853779]
[1772267348053,6.48875333,78.45,78.411,0.47423328]
[1772267349643,6.48875333,78.45,78.413,0.47423328]
[1772267349851,6.48875333,78.44,78.413,0.47423328]
[1772267350841,6.48875333,78.44,78.415,0.48225349]
[1772267352331,1.27297723,78.469,78.415,0.48225349]
[1772267352332,6.48875333,78.45,78.415,0.48225349]
[1772267352532,6.48875333,78.46,78.421,0.48225349]
[1772267353053,6.48875333,78.46,78.423,0.48225349]
[1772267353650,6.48875333,78.47,78.441,0.48225349]
[1772267353855,0.11664614,78.473,78.441,0.48225349]
[1772267354879,12.74319687,78.474,78.441,0.48225349]
[1772267355152,0.11664614,78.487,78.451,0.48225349]
[1772267355357,12.85774581,78.487,78.451,0.48225349]
[1772267355648,5.36086188,78.517,78.442,44.61895412]
[1772267355649,0.11664614,78.502,78.48,6.48875333]
[1772267355849,12.73771795,78.507,78.481,0.48225349]
[1772267356151,0.11664614,78.507,78.481,0.48225349]
[1772267356350,0.11664614,78.514,78.481,0.48225349]
[1772267356561,0.11664614,78.509,78.47,6.48875333]
[1772267356736,0.11664614,78.509,78.48,6.48875333]
[1772267357257,0.48643486,78.508,78.481,12.74193753]
[1772267359061,0.48643486,78.508,78.481,13.22419102]
[1772267359652,0.48643486,78.508,78.482,0.48225349]
[1772267359856,0.48643486,78.515,78.482,0.48225349]
[1772267361453,14.48418556,78.52,78.491,0.48225349]
[1772267361640,14.48418556,78.52,78.492,13.22240535]
[1772267361641,0.48643486,78.519,78.492,13.22240535]
[1772267362860,0.48643486,78.519,78.493,0.48225349]
[1772267363060,6.65784784,78.543,78.458,63.72786146]
[1772267363061,0.48643486,78.517,78.486,0.48225349]
[1772267363268,0.48643486,78.499,78.469,0.48225349]
[1772267363641,0.48643486,78.499,78.47,27.71016276]
[1772267363858,14.48418556,78.49,78.464,13.22684189]
[1772267364068,0.48643486,78.489,78.464,12.7445884]
[1772267364245,0.48643486,78.489,78.46,0.48225349]
[1772267365960,0.48643486,78.488,78.462,0.48225349]
[1772267368562,0.48643486,78.488,78.435,63.74692036]
[1772267368563,0.48643486,78.469,78.431,0.48225349]
[1772267372373,0.48643486,78.469,78.441,0.48225349]
[1772267374569,0.48643486,78.469,78.443,0.48225349]
[1772267374874,0.48643486,78.475,78.443,0.48225349]
[1772267376282,0.48643486,78.469,78.443,0.48225349]
[1772267377758,0.48643486,78.468,78.443,0.48225349]
[1772267377956,0.48643486,78.468,78.437,13.2312135]
[1772267378173,0.48643486,78.468,78.438,0.48225349]
[1772267379167,0.48643486,78.466,78.439,13.23101367]
[1772267379653,0.48643486,78.466,78.44,0.48225349]
[1772267381371,0.48643486,78.466,78.442,0.47432315]
[1772267382075,0.48643486,78.466,78.437,13.24210429]
[1772267382279,6.49635007,78.47,78.415,63.76317341]
[1772267382280,0.46636635,78.459,78.431,0.49303662]
[1772267383579,0.46636635,78.468,78.433,0.49303662]
[1772267384281,6.49635007,78.46,78.433,0.49303662]
[1772267384467,6.49635007,78.46,78.435,0.49303662]
[1772267384776,0.46636635,78.468,78.435,0.49303662]
[1772267387975,0.46636635,78.466,78.437,0.49303662]
[1772267388172,6.96271642,78.46,78.437,0.49303662]
[1772267388479,0.46636635,78.459,78.437,0.49303662]
[1772267389773,0.46636635,78.459,78.42,6.49635007]
[1772267389774,12.74567284,78.458,78.42,6.49635007]
[1772267389981,0.46636635,78.449,78.423,0.49303662]
[1772267390167,0.46636635,78.439,78.417,0.49303662]
[1772267390569,0.46636635,78.429,78.405,0.49303662]
[1772267391669,0.46636635,78.429,78.4,0.2]
[1772267391670,0.46636635,78.429,78.406,13.24716257]
[1772267393879,0.46636635,78.427,78.406,0.49303662]
[1772267395190,0.46636635,78.427,78.407,12.75396329]
[1772267395392,6.49635007,78.43,78.408,0.49303662]
[1772267395589,0.46636635,78.429,78.408,0.49303662]
[1772267396572,0.46636635,78.428,78.402,0.49303662]
[1772267396774,12.75038569,78.429,78.4,0.2]
[1772267396775,0.46636635,78.419,78.4,0.2]
[1772267397593,0.46636635,78.417,78.4,0.2]
[1772267397777,0.46636635,78.409,78.4,0.2]
[1772267398088,0.46636635,78.409,78.39,0.2]
[1772267398690,0.46636635,78.409,78.39,0.69303662]
[1772267399480,0.39889963,78.408,78.39,0.2]
[1772267399804,12.75374512,78.409,78.37,0.2]
[1772267399805,0.19889963,78.399,78.37,0.2]
[1772267399984,0.19889963,78.389,78.37,0.2]
[1772267400497,6.49635007,78.38,78.37,0.2]
[1772267400681,0.19889963,78.389,78.37,0.2]
[1772267401619,6.49635007,78.41,78.371,0.49303662]
[1772267401784,31.87974773,78.42,78.37,19.45618672]
[1772267401785,6.49635007,78.42,78.381,0.49303662]
[1772267401980,6.49635007,78.42,78.37,44.85979837]
[1772267401981,6.49635007,78.4,78.37,12.95983665]
[1772267402184,6.49635007,78.4,78.371,0.49303662]
[1772267402398,1.27297723,78.433,78.37,0.2]
[1772267402399,6.49635007,78.39,78.37,0.2]
[1772267403185,6.49635007,78.39,78.372,0.49303662]
[1772267404497,0.19889963,78.4,78.37,0.2]
[1772267404498,6.49635007,78.4,78.374,0.49303662]
[1772267404998,6.49635007,78.39,78.37,0.2]
[1772267405180,6.49635007,78.39,78.371,0.49303662]
[1772267405382,0.19889963,78.389,78.364,0.49303662]
[1772267405594,0.19889963,78.389,78.365,12.76079882]
[1772267405993,0.19889963,78.389,78.365,13.25383544]
[1772267406786,0.19889963,78.389,78.366,0.49303662]
[1772267406986,6.49635007,78.39,78.366,0.49303662]
[1772267407585,6.49635007,78.39,78.368,0.49303662]
[1772267408399,19.45211676,78.39,78.368,0.49303662]
[1772267408720,19.45211676,78.39,78.36,0.2]
[1772267408721,0.19889963,78.379,78.36,0.2]
[1772267408887,12.75686706,78.39,78.35,0.2]
[1772267408888,6.49635007,78.37,78.35,0.2]
[1772267409216,6.49635007,78.36,78.35,0.2]
[1772267409513,0.19889963,78.372,78.35,0.2]
[1772267409514,6.49635007,78.37,78.35,0.2]
[1772267409817,12.7601475,78.369,78.35,0.2]
[1772267410189,0.19889963,78.368,78.35,0.2]
[1772267411307,6.49635007,78.36,78.35,0.2]
[1772267411486,6.49635007,78.36,78.344,0.49303662]
[1772267411684,6.49635007,78.37,78.346,0.47638692]
[1772267411888,6.49635007,78.36,78.346,0.47638692]
[1772267412398,6.49635007,78.36,78.332,0.47638692]
[1772267412894,6.49635007,78.35,78.332,0.47638692]
[1772267413095,6.49635007,78.36,78.332,0.47638692]
[1772267413706,12.75933345,78.374,78.33,6.69635007]
[1772267413707,12.75933345,78.374,78.334,0.47638692]
[1772267413896,31.89449369,78.384,78.333,44.68104119]
[1772267413897,19.25471376,78.38,78.341,0.47638692]
[1772267414094,6.49635007,78.39,78.351,0.47638692]
[1772267414295,0.19889963,78.399,78.361,0.47638692]
[1772267414993,6.49635007,78.44,78.36,6.49635007]
[1772267414994,6.49635007,78.43,78.391,0.47638692]
[1772267415187,0.19889963,78.438,78.401,0.47638692]
[1772267415593,6.49635007,78.43,78.401,0.47638692]
[1772267415901,6.49635007,78.43,78.403,0.47638692]
[1772267416506,19.24658639,78.43,78.403,0.47638692]
[1772267418100,19.24658639,78.43,78.405,0.47638692]
[1772267418600,6.49635007,78.43,78.405,0.47638692]
[1772267419702,0.19889963,78.438,78.405,0.47638692]
[1772267419916,6.49635007,78.44,78.411,0.47638692]
[1772267420098,6.49635007,78.44,78.413,0.47638692]
[1772267421503,0.19889963,78.439,78.413,0.47638692]
[1772267421718,0.19889963,78.429,78.404,12.75443476]
[1772267422441,0.19889963,78.429,78.398,0.47638692]
[1772267423315,0.19889963,78.429,78.4,0.47638692]
[1772267424312,12.75054827,78.428,78.402,0.47638692]
[1772267424713,0.19889963,78.427,78.394,0.47638692]
[1772267425315,6.49635007,78.41,78.386,0.47638692]
[1772267425515,6.49635007,78.42,78.386,0.47638692]
[1772267425703,0.19889963,78.419,78.386,0.47638692]
[1772267426307,12.75217424,78.418,78.388,0.47638692]
[1772267426641,12.75217424,78.418,78.387,12.75721739]
[1772267426642,0.19889963,78.436,78.401,0.47638692]
[1772267426806,12.94814742,78.436,78.401,0.47638692]
[1772267427205,0.19889963,78.435,78.401,0.47638692]
[1772267427416,6.49635007,78.43,78.401,0.47638692]
[1772267428113,0.19889963,78.429,78.401,0.47638692]
[1772267428320,0.19889963,78.417,78.394,0.47638692]
[1772267428523,6.49635007,78.42,78.396,0.47638692]
[1772267430008,31.87311948,78.436,78.396,0.47638692]
[1772267430009,6.49635007,78.43,78.396,0.47638692]
[1772267430214,12.94928532,78.429,78.396,0.47638692]
[1772267430410,0.19889963,78.428,78.398,0.47638692]
[1772267431310,12.74964609,78.434,78.401,0.47638692]
[1772267432328,38.53363342,78.447,78.411,0.47638692]
[1772267432329,0.19889963,78.446,78.411,0.47638692]
[1772267432710,6.49635007,78.44,78.411,0.47638692]
[1772267433706,0.19889963,78.429,78.393,0.47638692]
[1772267433910,44.61667898,78.446,78.371,0.47638692]
[1772267433911,0.19889963,78.399,78.371,0.47638692]
[1772267434122,6.49635007,78.39,78.371,0.47638692]
[1772267435227,12.75689191,78.389,78.371,0.47638692]
[1772267435730,12.75689191,78.389,78.363,0.47638692]
[1772267435933,14.53030073,78.39,78.363,0.47638692]
[1772267436532,27.28713248,78.39,78.364,12.76096166]
[1772267436719,27.28713248,78.39,78.364,13.23734858]
[1772267437727,27.28713248,78.39,78.365,0.47638692]
[1772267437934,14.53030073,78.39,78.365,0.47638692]
[1772267438328,14.53030073,78.41,78.371,0.47638692]
[1772267438526,14.53030073,78.41,78.351,108.48598848]
[1772267438527,14.53030073,78.41,78.381,0.47638692]
[1772267439115,0.19889963,78.414,78.381,0.47638692]
[1772267439711,14.53030073,78.42,78.383,0.47638692]
[1772267439918,12.75038569,78.429,78.391,0.47638692]
[1772267440217,14.53030073,78.42,78.391,0.47638692]
[1772267440926,14.53030073,78.42,78.392,12.75640371]
[1772267441125,14.53030073,78.42,78.393,0.49349859]
[1772267441329,14.51748813,78.42,78.393,0.49349859]
[1772267441524,14.71638776,78.42,78.393,0.49349859]
[1772267441727,0.19889963,78.419,78.393,0.49349859]
[1772267442919,14.51748813,78.41,78.393,0.49349859]
[1772267443125,12.75330419,78.412,78.393,0.49349859]
[1772267444128,0.19889963,78.417,78.387,0.47430002]
[1772267444328,12.75217424,78.418,78.387,0.47430002]
[1772267445226,14.51748813,78.42,78.387,0.47430002]
[1772267445426,12.75073683,78.427,78.391,0.47430002]
[1772267445626,12.94963646,78.427,78.391,0.47430002]
[1772267445828,14.51748813,78.42,78.391,0.47430002]
[1772267446230,14.51748813,78.42,78.393,0.47430002]
[1772267447239,12.75070227,78.428,78.393,0.47430002]
[1772267448341,12.75070227,78.428,78.395,0.47430002]
[1772267448643,12.9496019,78.428,78.395,0.47430002]
[1772267449337,12.9496019,78.428,78.396,12.75575284]
[1772267449548,0.19889963,78.428,78.401,0.47430002]
[1772267449840,5.36086188,78.454,78.396,12.75575284]
[1772267449841,0.19889963,78.446,78.411,0.47430002]
[1772267451033,12.74778507,78.445,78.413,0.47430002]
[1772267451225,14.51748813,78.44,78.413,0.47430002]
[1772267452039,0.19889963,78.439,78.412,12.75315002]
[1772267452242,0.19889963,78.429,78.398,0.47430002]
[1772267453251,14.71638776,78.42,78.398,0.47430002]
[1772267453735,14.51748813,78.42,78.398,0.47430002]
[1772267454443,14.51748813,78.42,78.399,12.75526473]
[1772267454649,14.51748813,78.42,78.399,0.47430002]
[1772267455446,0.19889963,78.447,78.411,0.47430002]
[1772267456428,0.19889963,78.447,78.41,14.51748813]
[1772267456429,12.74778165,78.446,78.413,0.4731835]
[1772267459842,12.74778165,78.446,78.415,0.4731835]
[1772267460254,14.51748813,78.46,78.431,0.4731835]
[1772267460548,31.85866351,78.472,78.414,44.63488662]
[1772267460549,14.51748813,78.45,78.414,44.63488662]
[1772267460734,14.51748813,78.44,78.415,0.4731835]
[1772267462253,14.51748813,78.44,78.417,0.4731835]
[1772267463447,0.19889963,78.429,78.398,0.4731835]
[1772267464062,14.51748813,78.43,78.401,0.4731835]
[1772267465132,0.19889963,78.429,78.401,0.4731835]
[1772267465638,0.19889963,78.429,78.402,13.22796016]
[1772267466150,0.19889963,78.429,78.403,0.4731835]
[1772267467256,14.51748813,78.44,78.411,0.4731835]
[1772267468348,0.19889963,78.439,78.411,0.4731835]
[1772267469354,12.74813058,78.443,78.413,0.4731835]
[1772267469560,12.94372013,78.464,78.421,0.4731835]
[1772267469744,12.94372013,78.464,78.431,0.4731835]
[1772267469943,12.74401522,78.469,78.431,0.4731835]
[1772267470138,12.94291485,78.469,78.431,0.4731835]